[Event "*** Titled Tuesday Blitz"]
[Site "Chess.com"]
[Date "2019.02.05"]
[Round "5"]
[White "GMMatamoros"]
[Black "GM_shahin"]
[Result "0-1"]
[WhiteElo "2507"]
[BlackElo "2729"]
[TimeControl "180+2"]
[EndTime "14:04:08 PST"]
[Termination "GM_shahin won by resignation"]

1. Nf3 {[%clk 0:03:01.9]} 1... Nf6 {[%clk 0:03:00.2]} 2. c4 {[%clk 0:03:02.5]}
2... g6 {[%clk 0:03:01.1]} 3. g3 {[%clk 0:03:03.7]} 3... d5 {[%clk 0:03:02.5]}
4. cxd5 {[%clk 0:03:02.8]} 4... Nxd5 {[%clk 0:03:04.4]} 5. Bg2 {[%clk
0:03:04.2]} 5... Bg7 {[%clk 0:03:05.2]} 6. O-O {[%clk 0:03:05.1]} 6... O-O
{[%clk 0:03:06]} 7. Nc3 {[%clk 0:03:01.8]} 7... Nc6 {[%clk 0:03:06.4]} 8. d4
{[%clk 0:03:02.3]} 8... Nb6 {[%clk 0:03:07.4]} 9. d5 {[%clk 0:03:02.6]} 9... Na5
{[%clk 0:03:08.7]} 10. e4 {[%clk 0:03:03]} 10... c6 {[%clk 0:03:09.3]} 11. Bf4
{[%clk 0:03:04.1]} 11... cxd5 {[%clk 0:03:10.1]} 12. Nxd5 {[%clk 0:03:01]} 12...
Nxd5 {[%clk 0:03:08.1]} 13. exd5 {[%clk 0:03:02.9]} 13... Nc4 {[%clk 0:03:09.3]}
14. Qb3 {[%clk 0:02:45.8]} 14... Nxb2 {[%clk 0:03:02.7]} 15. Rfb1 {[%clk
0:01:31.9]} 15... Qb6 {[%clk 0:03:00.6]} 16. Ne5 {[%clk 0:01:32.3]} 16... Qxb3
{[%clk 0:02:55.6]} 17. axb3 {[%clk 0:01:34.2]} 17... g5 {[%clk 0:02:56.5]} 18.
Rxb2 {[%clk 0:01:11.2]} 18... gxf4 {[%clk 0:02:58.4]} 19. gxf4 {[%clk
0:01:12.5]} 19... Bh6 {[%clk 0:02:59]} 20. Ra4 {[%clk 0:01:00.8]} 20... Bf5
{[%clk 0:02:56.5]} 21. Be4 {[%clk 0:00:50.7]} 21... Bh3 {[%clk 0:02:55.9]} 22.
Bg2 {[%clk 0:00:50.7]} 22... Bf5 {[%clk 0:02:56.6]} 23. Be4 {[%clk 0:00:47.4]}
23... Bh3 {[%clk 0:02:53.6]} 24. Bg2 {[%clk 0:00:47.8]} 24... Bc8 {[%clk
0:02:55.5]} 25. Re2 {[%clk 0:00:44.3]} 25... Kh8 {[%clk 0:02:55.6]} 26. Rc4
{[%clk 0:00:41.7]} 26... b5 {[%clk 0:02:52.3]} 27. Rc7 {[%clk 0:00:41.4]} 27...
Bxf4 {[%clk 0:02:52.5]} 28. Rxe7 {[%clk 0:00:42.1]} 28... Bxe5 {[%clk
0:02:45.6]} 29. R2xe5 {[%clk 0:00:41.6]} 29... Rb8 {[%clk 0:02:47.1]} 30. d6
{[%clk 0:00:40.3]} 30... Be6 {[%clk 0:02:48]} 31. Bd5 {[%clk 0:00:36.9]} 31...
Rg8+ {[%clk 0:02:48]} 32. Kf1 {[%clk 0:00:38.1]} 32... Bh3+ {[%clk 0:02:48.9]}
33. Ke2 {[%clk 0:00:37.6]} 33... Rbd8 {[%clk 0:02:49.6]} 34. Bxf7 {[%clk
0:00:35.8]} 34... Rgf8 {[%clk 0:02:50.7]} 35. Re8 {[%clk 0:00:34.1]} 35... Kg7
{[%clk 0:02:51.8]} 36. Rxf8 {[%clk 0:00:30.6]} 36... Rxf8 {[%clk 0:02:48.7]} 37.
Be6 {[%clk 0:00:29.9]} 37... Kf6 {[%clk 0:02:49.8]} 38. Bxh3 {[%clk 0:00:27.4]}
38... Kxe5 {[%clk 0:02:51.2]} 39. d7 {[%clk 0:00:28]} 39... a5 {[%clk
0:02:51.4]} 40. Kd3 {[%clk 0:00:29]} 40... a4 {[%clk 0:02:52.5]} 41. bxa4 {[%clk
0:00:29.5]} 41... bxa4 {[%clk 0:02:53.5]} 42. Kc3 {[%clk 0:00:30.8]} 42... Kd6
{[%clk 0:02:54]} 43. Kb4 {[%clk 0:00:31.7]} 43... Rf4+ {[%clk 0:02:55]} 44. Ka3
{[%clk 0:00:32.5]} 44... Ke7 {[%clk 0:02:56.9]} 0-1

[Event "*** Titled Tuesday Blitz"]
[Site "Chess.com"]
[Date "2019.02.05"]
[Round "5"]
[White "gmcorrales"]
[Black "FMJoseHerrera"]
[Result "1-0"]
[WhiteElo "2743"]
[BlackElo "2570"]
[TimeControl "180+2"]
[EndTime "14:04:09 PST"]
[Termination "gmcorrales won by checkmate"]

1. e4 {[%clk 0:03:01.9]} 1... c5 {[%clk 0:03:00.6]} 2. Nf3 {[%clk 0:02:51.8]}
2... e6 {[%clk 0:03:01.4]} 3. d4 {[%clk 0:02:50.2]} 3... cxd4 {[%clk 0:03:03.3]}
4. Nxd4 {[%clk 0:02:51.8]} 4... a6 {[%clk 0:03:04.4]} 5. Bd3 {[%clk 0:02:41.5]}
5... Qc7 {[%clk 0:03:04.6]} 6. O-O {[%clk 0:02:39]} 6... Nf6 {[%clk 0:03:05.3]}
7. Qe2 {[%clk 0:02:39]} 7... d6 {[%clk 0:03:06.2]} 8. c4 {[%clk 0:02:37.6]} 8...
Nbd7 {[%clk 0:03:06.9]} 9. Nc3 {[%clk 0:02:37]} 9... Be7 {[%clk 0:03:06.5]} 10.
Kh1 {[%clk 0:02:35.3]} 10... h5 {[%clk 0:03:06.5]} 11. f4 {[%clk 0:02:21.7]}
11... h4 {[%clk 0:03:07.5]} 12. Be3 {[%clk 0:02:13.3]} 12... h3 {[%clk
0:03:08.2]} 13. g3 {[%clk 0:02:13.8]} 13... b6 {[%clk 0:03:08.7]} 14. Kg1 {[%clk
0:01:57.4]} 14... Bb7 {[%clk 0:03:09.1]} 15. Rae1 {[%clk 0:01:57.8]} 15... Rc8
{[%clk 0:03:09.5]} 16. Bd2 {[%clk 0:01:20.4]} 16... Qb8 {[%clk 0:03:02.1]} 17.
b4 {[%clk 0:01:14]} 17... Qa7 {[%clk 0:02:32.8]} 18. Be3 {[%clk 0:01:12.5]}
18... Qa8 {[%clk 0:02:33.9]} 19. Bf2 {[%clk 0:01:11.3]} 19... b5 {[%clk
0:02:29.3]} 20. a3 {[%clk 0:00:55.4]} 20... bxc4 {[%clk 0:02:22]} 21. Bc2 {[%clk
0:00:56.7]} 21... O-O {[%clk 0:02:07.5]} 22. g4 {[%clk 0:00:57.4]} 22... g6
{[%clk 0:01:52.4]} 23. g5 {[%clk 0:00:58.4]} 23... Nh5 {[%clk 0:01:52.9]} 24.
Qg4 {[%clk 0:00:59.2]} 24... a5 {[%clk 0:01:35.7]} 25. Nxe6 {[%clk 0:01:00]}
25... fxe6 {[%clk 0:01:31.3]} 26. Qxe6+ {[%clk 0:01:01.9]} 26... Rf7 {[%clk
0:01:32.8]} 27. Qxg6+ {[%clk 0:01:02.2]} 27... Ng7 {[%clk 0:01:33.3]} 28. e5
{[%clk 0:00:53.2]} 28... Rxf4 {[%clk 0:01:23.1]} 29. Qh7+ {[%clk 0:00:48.8]}
29... Kf8 {[%clk 0:01:19.9]} 30. Qh8+ {[%clk 0:00:48.2]} 30... Kf7 {[%clk
0:01:21.2]} 31. e6+ {[%clk 0:00:49.6]} 31... Nxe6 {[%clk 0:01:19.4]} 32. g6#
{[%clk 0:00:51.5]} 1-0

[Event "*** Titled Tuesday Blitz"]
[Site "Chess.com"]
[Date "2019.02.05"]
[Round "5"]
[White "xberli"]
[Black "pultineviciuspaulius"]
[Result "1/2-1/2"]
[WhiteElo "2537"]
[BlackElo "2626"]
[TimeControl "180+2"]
[EndTime "14:04:28 PST"]
[Termination "Game drawn by agreement"]

1. e4 {[%clk 0:03:01.9]} 1... c6 {[%clk 0:03:00.3]} 2. d4 {[%clk 0:03:02.3]}
2... d5 {[%clk 0:03:02.2]} 3. e5 {[%clk 0:03:03.8]} 3... Bf5 {[%clk 0:03:02.8]}
4. Nf3 {[%clk 0:03:05]} 4... e6 {[%clk 0:03:04.1]} 5. Be2 {[%clk 0:03:06.5]}
5... Ne7 {[%clk 0:03:05.3]} 6. O-O {[%clk 0:03:07.9]} 6... Ng6 {[%clk
0:03:06.2]} 7. Re1 {[%clk 0:03:07.5]} 7... Nd7 {[%clk 0:03:06]} 8. Nbd2 {[%clk
0:03:07.8]} 8... f6 {[%clk 0:03:06.2]} 9. exf6 {[%clk 0:03:07.1]} 9... Qxf6
{[%clk 0:03:08.1]} 10. Bf1 {[%clk 0:02:58.1]} 10... Bd6 {[%clk 0:03:08.6]} 11.
c4 {[%clk 0:02:55.4]} 11... O-O {[%clk 0:03:08.8]} 12. Qb3 {[%clk 0:02:55.3]}
12... Rab8 {[%clk 0:03:06.8]} 13. g3 {[%clk 0:02:49.3]} 13... b5 {[%clk
0:02:55.6]} 14. cxb5 {[%clk 0:02:44.3]} 14... cxb5 {[%clk 0:02:56.2]} 15. Bg2
{[%clk 0:02:43.1]} 15... h5 {[%clk 0:02:50.3]} 16. Nf1 {[%clk 0:02:36.9]} 16...
Bg4 {[%clk 0:02:51.4]} 17. Bg5 {[%clk 0:02:33.5]} 17... Qf5 {[%clk 0:02:48.1]}
18. Ne3 {[%clk 0:02:31.9]} 18... Qf7 {[%clk 0:02:48.6]} 19. Nxg4 {[%clk
0:02:20.5]} 19... hxg4 {[%clk 0:02:50.5]} 20. Nh4 {[%clk 0:02:17.8]} 20... Qxf2+
{[%clk 0:02:52.4]} 21. Kh1 {[%clk 0:02:19]} 21... Nxh4 {[%clk 0:02:51.4]} 22.
Bxh4 {[%clk 0:02:20.9]} 22... Qxd4 {[%clk 0:02:50.9]} 23. Rad1 {[%clk
0:02:13.4]} 23... Qc4 {[%clk 0:02:20.9]} 24. Rxe6 {[%clk 0:01:51.1]} 24... Qxb3
{[%clk 0:02:13]} 25. axb3 {[%clk 0:01:53]} 25... Bb4 {[%clk 0:02:12.5]} 26. Bxd5
{[%clk 0:01:49.2]} 26... Kh8 {[%clk 0:02:13.4]} 27. Re4 {[%clk 0:01:47.6]} 27...
a5 {[%clk 0:02:13.1]} 28. Rxg4 {[%clk 0:01:45.9]} 28... Nf6 {[%clk 0:02:13.1]}
29. Bxf6 {[%clk 0:01:43.5]} 29... Rxf6 {[%clk 0:02:15]} 30. Rh4+ {[%clk
0:01:43.6]} 30... Rh6 {[%clk 0:02:16.4]} 31. Rxh6+ {[%clk 0:01:44.7]} 31... gxh6
{[%clk 0:02:18.3]} 32. Kg2 {[%clk 0:01:43.9]} 32... Bf8 {[%clk 0:02:17.9]} 33.
Kf3 {[%clk 0:01:42.8]} 33... Bg7 {[%clk 0:02:17.8]} 34. Rc1 {[%clk 0:01:41.2]}
34... Bxb2 {[%clk 0:02:17.2]} 35. Rc6 {[%clk 0:01:40.8]} 35... Bg7 {[%clk
0:02:16.4]} 36. Kg4 {[%clk 0:01:37.7]} 36... a4 {[%clk 0:02:13.8]} 37. bxa4
{[%clk 0:01:38.6]} 37... bxa4 {[%clk 0:02:15.7]} 38. Ra6 {[%clk 0:01:38.6]}
38... Rb4+ {[%clk 0:02:17]} 39. Kf5 {[%clk 0:01:39.1]} 39... Rb5 {[%clk
0:02:16.7]} 40. Kg6 {[%clk 0:01:32.8]} 40... Rb8 {[%clk 0:02:05.4]} 41. Rxa4
{[%clk 0:01:33.7]} 41... Rb6+ {[%clk 0:02:06.3]} 42. Kf5 {[%clk 0:01:32.7]}
42... Rf6+ {[%clk 0:02:07.4]} 43. Ke4 {[%clk 0:01:33.7]} 43... Bf8 {[%clk
0:02:08]} 44. Ra2 {[%clk 0:01:27.3]} 44... Bd6 {[%clk 0:02:07.4]} 45. Bc4 {[%clk
0:01:26.1]} 45... Kg7 {[%clk 0:02:08.1]} 46. Re2 {[%clk 0:01:25.5]} 46... h5
{[%clk 0:02:08.1]} 47. Kd5 {[%clk 0:01:25.2]} 47... h4 {[%clk 0:02:08.3]} 48.
gxh4 {[%clk 0:01:26.3]} 48... Bf4 {[%clk 0:02:09.1]} 49. Rg2+ {[%clk 0:01:26.3]}
49... Kf8 {[%clk 0:02:09.4]} 50. Ke4 {[%clk 0:01:26.3]} 50... Bd6 {[%clk
0:02:10.3]} 51. Rg8+ {[%clk 0:01:25.1]} 51... Ke7 {[%clk 0:02:11.6]} 52. Rg7+
{[%clk 0:01:26.4]} 52... Kf8 {[%clk 0:02:12.7]} 53. Rg4 {[%clk 0:01:21.2]} 53...
Bxh2 {[%clk 0:02:13]} 54. h5 {[%clk 0:01:21.2]} 54... Rf4+ {[%clk 0:02:14.9]}
55. Rxf4+ {[%clk 0:01:22.2]} 55... Bxf4 {[%clk 0:02:16.8]} 56. Kxf4 {[%clk
0:01:23.8]} 56... Kg7 {[%clk 0:02:18.7]} 57. Kg5 {[%clk 0:01:23]} 1/2-1/2

[Event "*** Titled Tuesday Blitz"]
[Site "Chess.com"]
[Date "2019.02.05"]
[Round "5"]
[White "r31415"]
[Black "Torrentec"]
[Result "0-1"]
[WhiteElo "2288"]
[BlackElo "2411"]
[TimeControl "180+2"]
[EndTime "14:04:29 PST"]
[Termination "Torrentec won by checkmate"]

1. e4 {[%clk 0:03:01.9]} 1... e5 {[%clk 0:03:00.8]} 2. Nf3 {[%clk 0:03:02.8]}
2... Nc6 {[%clk 0:02:58.9]} 3. Bc4 {[%clk 0:03:04.2]} 3... Bc5 {[%clk
0:02:48.3]} 4. c3 {[%clk 0:03:05.5]} 4... Nf6 {[%clk 0:02:45.2]} 5. d3 {[%clk
0:03:06.7]} 5... a6 {[%clk 0:02:46]} 6. Bb3 {[%clk 0:03:07]} 6... Ba7 {[%clk
0:02:46.4]} 7. O-O {[%clk 0:03:05.8]} 7... d6 {[%clk 0:02:47.5]} 8. Nbd2 {[%clk
0:03:06.6]} 8... Be6 {[%clk 0:02:48.4]} 9. Re1 {[%clk 0:03:07.6]} 9... O-O
{[%clk 0:02:47.8]} 10. Nf1 {[%clk 0:03:08.3]} 10... h6 {[%clk 0:02:48.5]} 11. h3
{[%clk 0:03:09.5]} 11... Ne7 {[%clk 0:02:43.8]} 12. Ng3 {[%clk 0:03:10]} 12...
Ng6 {[%clk 0:02:44.1]} 13. d4 {[%clk 0:03:05.4]} 13... Qe7 {[%clk 0:02:34.6]}
14. Be3 {[%clk 0:02:59.3]} 14... Nf4 {[%clk 0:02:32.3]} 15. Qd2 {[%clk
0:02:26.1]} 15... Bxb3 {[%clk 0:02:21.2]} 16. axb3 {[%clk 0:02:25.9]} 16... N6h5
{[%clk 0:02:21.7]} 17. Nf5 {[%clk 0:02:16.3]} 17... Qf6 {[%clk 0:02:20.8]} 18.
dxe5 {[%clk 0:02:07.8]} 18... dxe5 {[%clk 0:02:20.5]} 19. Bxa7 {[%clk 0:02:08]}
19... Rxa7 {[%clk 0:02:20]} 20. Rad1 {[%clk 0:01:55.9]} 20... Kh8 {[%clk
0:02:11.2]} 21. Qe3 {[%clk 0:01:49.6]} 21... Raa8 {[%clk 0:02:07.2]} 22. Qc5
{[%clk 0:01:50.6]} 22... Qg6 {[%clk 0:02:03.6]} 23. N3h4 {[%clk 0:01:35.8]}
23... Qg5 {[%clk 0:02:00.8]} 24. g3 {[%clk 0:01:12]} 24... Nxh3+ {[%clk
0:01:56.9]} 25. Kh2 {[%clk 0:01:11]} 25... N3f4 {[%clk 0:01:48]} 26. gxf4 {[%clk
0:01:02.8]} 26... Qxf4+ {[%clk 0:01:48.3]} 27. Kh3 {[%clk 0:00:56.2]} 27... g5
{[%clk 0:01:32.8]} 28. Ng2 {[%clk 0:00:33.8]} 28... g4+ {[%clk 0:01:18.1]} 29.
Kh4 {[%clk 0:00:35.1]} 29... Qg5# {[%clk 0:01:18.6]} 0-1

[Event "*** Titled Tuesday Blitz"]
[Site "Chess.com"]
[Date "2019.02.05"]
[Round "5"]
[White "HElissalt"]
[Black "MathiasWomacka"]
[Result "1/2-1/2"]
[WhiteElo "2101"]
[BlackElo "2237"]
[TimeControl "180+2"]
[EndTime "14:04:31 PST"]
[Termination "Game drawn by agreement"]

1. d4 {[%clk 0:03:01.9]} 1... Nf6 {[%clk 0:02:59.2]} 2. c4 {[%clk 0:03:02.1]}
2... e6 {[%clk 0:02:59.8]} 3. Nf3 {[%clk 0:03:02.1]} 3... Bb4+ {[%clk
0:02:59.9]} 4. Bd2 {[%clk 0:03:02.3]} 4... Qe7 {[%clk 0:03:00]} 5. Bxb4 {[%clk
0:02:58.9]} 5... Qxb4+ {[%clk 0:03:00.6]} 6. Qd2 {[%clk 0:03:00.1]} 6... Qxc4
{[%clk 0:03:01.1]} 7. Nc3 {[%clk 0:03:00.6]} 7... Qb4 {[%clk 0:02:58.2]} 8. e4
{[%clk 0:03:00.7]} 8... d5 {[%clk 0:02:39.5]} 9. e5 {[%clk 0:02:58.9]} 9... Nfd7
{[%clk 0:02:40.3]} 10. a3 {[%clk 0:02:57.5]} 10... Qe7 {[%clk 0:02:41.1]} 11. b4
{[%clk 0:02:57.4]} 11... a5 {[%clk 0:02:36.4]} 12. Nb5 {[%clk 0:02:41.3]} 12...
Na6 {[%clk 0:02:14.4]} 13. bxa5 {[%clk 0:02:39.8]} 13... f6 {[%clk 0:02:10.7]}
14. Rc1 {[%clk 0:02:09.8]} 14... fxe5 {[%clk 0:01:59.8]} 15. Nxc7+ {[%clk
0:02:01.8]} 15... Nxc7 {[%clk 0:01:59.8]} 16. Rxc7 {[%clk 0:02:02.5]} 16... e4
{[%clk 0:01:34.7]} 17. Ne5 {[%clk 0:02:00.5]} 17... Qxa3 {[%clk 0:01:28.2]} 18.
Bb5 {[%clk 0:01:54.8]} 18... Qa1+ {[%clk 0:01:27.9]} 19. Ke2 {[%clk 0:01:51.6]}
19... Qxh1 {[%clk 0:01:10.1]} 20. Rxd7 {[%clk 0:01:11]} 20... O-O {[%clk
0:00:16.9]} 21. Rxg7+ {[%clk 0:01:10.5]} 21... Kxg7 {[%clk 0:00:17.5]} 22. Qg5+
{[%clk 0:01:11.4]} 22... Kh8 {[%clk 0:00:18.3]} 23. Ng6+ {[%clk 0:01:12]} 23...
hxg6 {[%clk 0:00:19]} 24. Qh6+ {[%clk 0:01:12.7]} 24... Kg8 {[%clk 0:00:20.4]}
25. Qxg6+ {[%clk 0:01:13.8]} 25... Kh8 {[%clk 0:00:20.3]} 1/2-1/2

[Event "*** Titled Tuesday Blitz"]
[Site "Chess.com"]
[Date "2019.02.05"]
[Round "5"]
[White "nubair1198"]
[Black "Anar_Aliakbarov"]
[Result "1-0"]
[WhiteElo "2660"]
[BlackElo "2454"]
[TimeControl "180+2"]
[EndTime "14:04:38 PST"]
[Termination "nubair1198 won by resignation"]

1. Nf3 {[%clk 0:03:01.9]} 1... d5 {[%clk 0:02:52.5]} 2. g3 {[%clk 0:03:01.4]}
2... Nf6 {[%clk 0:02:53.1]} 3. Bg2 {[%clk 0:03:02.7]} 3... e6 {[%clk 0:02:54.4]}
4. O-O {[%clk 0:03:03.8]} 4... Be7 {[%clk 0:02:56]} 5. c4 {[%clk 0:03:05.4]}
5... O-O {[%clk 0:02:57.7]} 6. b3 {[%clk 0:03:05.4]} 6... c5 {[%clk 0:02:58.4]}
7. cxd5 {[%clk 0:03:05.7]} 7... Nxd5 {[%clk 0:02:59]} 8. Bb2 {[%clk 0:03:06.8]}
8... Bf6 {[%clk 0:02:59.4]} 9. Qc1 {[%clk 0:03:06.2]} 9... Bxb2 {[%clk
0:02:58.1]} 10. Qxb2 {[%clk 0:03:07.1]} 10... Nc6 {[%clk 0:02:59.5]} 11. Rd1
{[%clk 0:03:07.4]} 11... Qf6 {[%clk 0:02:37.1]} 12. Qxf6 {[%clk 0:03:06.9]}
12... Nxf6 {[%clk 0:02:38.2]} 13. Nc3 {[%clk 0:03:04.6]} 13... Rd8 {[%clk
0:02:37]} 14. Na4 {[%clk 0:03:06]} 14... Nd7 {[%clk 0:02:03.5]} 15. d4 {[%clk
0:03:04]} 15... cxd4 {[%clk 0:02:04.4]} 16. Nxd4 {[%clk 0:03:05.9]} 16... Nxd4
{[%clk 0:02:05.4]} 17. Rxd4 {[%clk 0:03:07.8]} 17... Kf8 {[%clk 0:02:03.2]} 18.
Rc1 {[%clk 0:02:37]} 18... Ke8 {[%clk 0:01:50.8]} 19. Rc7 {[%clk 0:02:38.1]}
19... Rb8 {[%clk 0:01:52.2]} 20. e3 {[%clk 0:02:20.6]} 20... Ne5 {[%clk
0:01:49.7]} 21. Nc5 {[%clk 0:02:12.2]} 21... Rxd4 {[%clk 0:01:41.8]} 22. exd4
{[%clk 0:02:14.1]} 22... Kd8 {[%clk 0:01:05.2]} 23. Rxc8+ {[%clk 0:02:13.5]}
23... Rxc8 {[%clk 0:01:00.9]} 24. Nxb7+ {[%clk 0:02:12.8]} 24... Ke7 {[%clk
0:01:02.2]} 25. dxe5 {[%clk 0:02:13.6]} 25... Rc1+ {[%clk 0:00:56.5]} 26. Bf1
{[%clk 0:02:14.9]} 26... Ra1 {[%clk 0:00:47.9]} 27. a4 {[%clk 0:02:14.9]} 27...
Rb1 {[%clk 0:00:47.1]} 28. Na5 {[%clk 0:02:15.6]} 28... Kd7 {[%clk 0:00:41.3]}
29. Kg2 {[%clk 0:02:15.6]} 29... Kc7 {[%clk 0:00:41.1]} 30. Bd3 {[%clk
0:02:13.5]} 30... Rb2 {[%clk 0:00:38.5]} 31. Bxh7 {[%clk 0:02:13.7]} 31... Kd7
{[%clk 0:00:11.1]} 32. Bd3 {[%clk 0:02:10.5]} 32... Rd2 {[%clk 0:00:10.6]} 33.
Bb5+ {[%clk 0:02:07.1]} 33... Ke7 {[%clk 0:00:11.7]} 34. Kf3 {[%clk 0:02:06.4]}
34... g6 {[%clk 0:00:11.9]} 35. h4 {[%clk 0:02:06.7]} 35... Rb2 {[%clk
0:00:12.3]} 36. Ke3 {[%clk 0:02:06.1]} 36... Kd8 {[%clk 0:00:12.7]} 37. Nc6+
{[%clk 0:02:04.6]} 37... Kc7 {[%clk 0:00:14.3]} 38. Nd4 {[%clk 0:02:06]} 38...
Rxb3+ {[%clk 0:00:16.2]} 39. Nxb3 {[%clk 0:02:07]} 1-0

[Event "*** Titled Tuesday Blitz"]
[Site "Chess.com"]
[Date "2019.02.05"]
[Round "5"]
[White "hurricane7791"]
[Black "RoelandPruijssers"]
[Result "0-1"]
[WhiteElo "2666"]
[BlackElo "2518"]
[TimeControl "180+2"]
[EndTime "14:04:50 PST"]
[Termination "RoelandPruijssers won by resignation"]

1. d4 {[%clk 0:03:01.9]} 1... d5 {[%clk 0:03:00.7]} 2. c4 {[%clk 0:03:03.4]}
2... e6 {[%clk 0:03:01.7]} 3. Nc3 {[%clk 0:03:04.3]} 3... Nf6 {[%clk 0:03:02.7]}
4. cxd5 {[%clk 0:03:05.5]} 4... Nxd5 {[%clk 0:03:04]} 5. e4 {[%clk 0:03:06.4]}
5... Nxc3 {[%clk 0:03:05.4]} 6. bxc3 {[%clk 0:03:08.3]} 6... c5 {[%clk
0:03:06.7]} 7. Rb1 {[%clk 0:03:09.9]} 7... cxd4 {[%clk 0:03:07.8]} 8. cxd4
{[%clk 0:03:11.8]} 8... Nc6 {[%clk 0:03:09.1]} 9. Bb5 {[%clk 0:03:12.7]} 9...
Bd7 {[%clk 0:03:06.9]} 10. Nf3 {[%clk 0:03:12.9]} 10... Bb4+ {[%clk 0:03:06.7]}
11. Bd2 {[%clk 0:03:12.9]} 11... Bxd2+ {[%clk 0:03:07.8]} 12. Qxd2 {[%clk
0:03:14.2]} 12... O-O {[%clk 0:03:07.8]} 13. O-O {[%clk 0:03:15.6]} 13... a6
{[%clk 0:03:06.3]} 14. Bd3 {[%clk 0:03:15.9]} 14... b5 {[%clk 0:03:05.7]} 15. d5
{[%clk 0:03:14.5]} 15... exd5 {[%clk 0:02:34.6]} 16. exd5 {[%clk 0:03:16.4]}
16... Ne7 {[%clk 0:02:35.9]} 17. Be4 {[%clk 0:03:03]} 17... Bf5 {[%clk
0:02:32.6]} 18. Bxf5 {[%clk 0:02:59.7]} 18... Nxf5 {[%clk 0:02:34.5]} 19. Rbc1
{[%clk 0:03:00.7]} 19... Re8 {[%clk 0:02:31.7]} 20. Rfd1 {[%clk 0:02:59.1]}
20... Nd6 {[%clk 0:02:30.4]} 21. Nd4 {[%clk 0:02:59.3]} 21... Ne4 {[%clk
0:02:29.7]} 22. Qf4 {[%clk 0:02:55.7]} 22... Qxd5 {[%clk 0:02:26.9]} 23. Nf5
{[%clk 0:02:47.5]} 23... Qe5 {[%clk 0:02:24.3]} 24. Qg4 {[%clk 0:02:45.1]} 24...
g6 {[%clk 0:02:20.8]} 25. Nd4 {[%clk 0:02:32.2]} 25... Nc3 {[%clk 0:02:01.5]}
26. Nf3 {[%clk 0:02:27.4]} 26... Qf6 {[%clk 0:01:40]} 27. Re1 {[%clk 0:02:27.9]}
27... Ne2+ {[%clk 0:01:38.4]} 28. Rxe2 {[%clk 0:02:28.9]} 28... Rxe2 {[%clk
0:01:40.3]} 29. a4 {[%clk 0:02:30.8]} 29... Rae8 {[%clk 0:01:35.5]} 30. h4
{[%clk 0:02:30.4]} 30... Rxf2 {[%clk 0:01:32.3]} 31. Ng5 {[%clk 0:01:55.5]}
31... Rf4 {[%clk 0:00:44.2]} 32. Qg3 {[%clk 0:01:47.7]} 32... Qd4+ {[%clk
0:00:43.5]} 33. Kh2 {[%clk 0:01:46.5]} 33... Rxh4+ {[%clk 0:00:44]} 34. Nh3
{[%clk 0:01:47.9]} 34... Re5 {[%clk 0:00:34.8]} 35. axb5 {[%clk 0:01:44.4]}
35... Rxh3+ {[%clk 0:00:31.4]} 36. gxh3 {[%clk 0:01:39.2]} 36... Qd2+ {[%clk
0:00:31.4]} 0-1

[Event "*** Titled Tuesday Blitz"]
[Site "Chess.com"]
[Date "2019.02.05"]
[Round "5"]
[White "vovachesss"]
[Black "amiralfio"]
[Result "1-0"]
[WhiteElo "2581"]
[BlackElo "2379"]
[TimeControl "180+2"]
[EndTime "14:04:51 PST"]
[Termination "vovachesss won by resignation"]

1. c4 {[%clk 0:03:01.9]} 1... Nf6 {[%clk 0:02:56.1]} 2. Nc3 {[%clk 0:03:03.2]}
2... c6 {[%clk 0:02:57.4]} 3. e4 {[%clk 0:02:58]} 3... e5 {[%clk 0:02:56.7]} 4.
Nf3 {[%clk 0:02:53.1]} 4... d5 {[%clk 0:02:40]} 5. cxd5 {[%clk 0:02:39]} 5...
cxd5 {[%clk 0:02:40.2]} 6. exd5 {[%clk 0:02:24.8]} 6... Bd6 {[%clk 0:02:30.5]}
7. Bb5+ {[%clk 0:02:20.1]} 7... Nbd7 {[%clk 0:02:26.1]} 8. O-O {[%clk
0:02:18.6]} 8... O-O {[%clk 0:02:27.6]} 9. Re1 {[%clk 0:02:15.3]} 9... a6 {[%clk
0:02:07.1]} 10. Bf1 {[%clk 0:01:54.6]} 10... Re8 {[%clk 0:02:01]} 11. d4 {[%clk
0:01:43]} 11... e4 {[%clk 0:02:00]} 12. Ng5 {[%clk 0:01:44.4]} 12... Nb6 {[%clk
0:01:53.8]} 13. g3 {[%clk 0:01:03.3]} 13... e3 {[%clk 0:01:45.1]} 14. Bxe3
{[%clk 0:00:59.8]} 14... Nbxd5 {[%clk 0:01:36.5]} 15. Nxd5 {[%clk 0:00:58.5]}
15... Nxd5 {[%clk 0:01:35]} 16. Qh5 {[%clk 0:00:59.3]} 16... Nf6 {[%clk
0:01:26.4]} 17. Qxf7+ {[%clk 0:00:57.6]} 17... Kh8 {[%clk 0:01:26.4]} 18. Qb3
{[%clk 0:00:58.4]} 18... Rf8 {[%clk 0:01:22.4]} 19. Nf7+ {[%clk 0:00:50]} 19...
Rxf7 {[%clk 0:01:23.7]} 20. Qxf7 {[%clk 0:00:51.9]} 20... Bb4 {[%clk 0:01:06]}
21. Bg5 {[%clk 0:00:26.9]} 21... Bxe1 {[%clk 0:00:53.6]} 22. Rxe1 {[%clk
0:00:28.8]} 22... Bf5 {[%clk 0:00:48.8]} 23. Bxf6 {[%clk 0:00:29]} 23... gxf6
{[%clk 0:00:47.2]} 24. Re7 {[%clk 0:00:24]} 24... Qg8 {[%clk 0:00:39.7]} 25.
Qxf6+ {[%clk 0:00:24.4]} 1-0